bitfinex/quotes_SOLUSD_20220118
["timestamp","ask_amount","ask_price","bid_price","bid_amount"]
[1642493704947,0.25,139.49,139.4,0.42934546]
[1642493705352,0.25,139.49,139.4,0.17934546]
[1642493707449,0.25,139.49,139.4,2.2165355]
[1642493707650,11.0094,139.49,139.4,2.2165355]
[1642493707850,17.0094,139.49,139.4,2.2165355]
[1642493709054,6.25,139.49,139.4,2.2165355]
[1642493709253,0.25,139.49,139.4,8.2165355]
[1642493709454,0.25,139.49,139.44,0.73229164]
[1642493710154,33.3449,139.5,139.44,0.73229164]
[1642493710356,10.33,139.52,139.44,48.32185016]
[1642493710580,1.90549491,139.54,139.45,2.867]
[1642493710754,1.90549491,139.54,139.45,3.117]
[1642493710953,2.5726696,139.5,139.45,3.117]
[1642493711357,2.5726696,139.5,139.45,13.8702]
[1642493712458,2.5726696,139.5,139.45,15.90739004]
[1642493713258,2.5726696,139.5,139.45,5.15419004]
[1642493714358,2.5726696,139.5,139.46,2.03719004]
[1642493714657,2.5726696,139.5,139.48,0.36614582]
[1642493714859,5.05249933,139.49,139.48,0.36614582]
[1642493715257,3.03219997,139.49,139.48,0.36614582]
[1642493715857,2.5726696,139.5,139.48,1.37804643]
[1642493717469,2.5726696,139.5,139.48,0.36614582]
[1642493717662,2.02029936,139.49,139.48,0.36614582]
[1642493718662,2.5726696,139.5,139.48,0.36614582]
[1642493718861,5.60486957,139.5,139.48,0.36614582]
[1642493719565,5.60486957,139.5,139.48,11.11754582]
[1642493719761,2.5726696,139.5,139.49,1.01190061]
[1642493721564,5.60486957,139.5,139.49,1.01190061]
[1642493721766,2.5726696,139.5,139.48,0.73229164]
[1642493722064,2.5726696,139.5,139.48,0.98229164]
[1642493722265,2.5726696,139.5,139.48,0.73229164]
[1642493722469,2.02029936,139.49,139.48,0.73229164]
[1642493722666,2.5726696,139.5,139.48,0.73229164]
[1642493722870,2.5726696,139.5,139.49,1.01190061]
[1642493724771,7.87516893,139.5,139.48,0.73229164]
[1642493724974,7.62516893,139.5,139.48,0.36614582]
[1642493725271,7.62516893,139.5,139.47,2.03719004]
[1642493725471,0.25,139.49,139.47,2.03719004]
[1642493725672,0.25,139.49,139.44,2.03719004]
[1642493727773,3.118,139.49,139.44,2.03719004]
[1642493728674,3.118,139.49,139.43,2.03719004]
[1642493728975,0.25,139.49,139.43,2.03719004]
[1642493729174,3.118,139.49,139.43,2.03719004]
[1642493729374,9.118,139.49,139.43,2.03719004]
[1642493729777,10.90705272,139.49,139.43,2.03719004]
[1642493730077,10.40705272,139.49,139.43,2.03719004]
[1642493730275,10.40705272,139.49,139.46,0.36614582]
[1642493730474,3.03209936,139.48,139.46,0.73229164]
[1642493730776,6.06429933,139.48,139.46,0.73229164]
[1642493731375,0.25,139.47,139.46,0.73229164]
[1642493731976,1.84037796,139.45,139.42,2.03719004]
[1642493732278,6.06429933,139.44,139.43,49.31782271]
[1642493732476,1.84037796,139.45,139.42,2.03719004]
[1642493733100,1.84037796,139.45,139.43,10.755]
[1642493733502,1.84037796,139.45,139.43,12.79219004]
[1642493734004,1.84037796,139.45,139.44,0.25]
[1642493734202,1.84037796,139.45,139.44,11.0044]
[1642493734404,1.41997796,139.45,139.44,11.0044]
[1642493734602,25.8676932,139.54,139.45,36.40973914]
[1642493734804,25.8676932,139.54,139.46,3.117]
[1642493734805,31.8676932,139.54,139.46,3.117]
[1642493735006,31.8676932,139.54,139.45,2.867]
[1642493735605,31.8676932,139.54,139.45,13.6204]
[1642493735806,0.25,139.53,139.45,13.6204]
[1642493736406,0.25,139.53,139.46,0.25]
[1642493736605,0.25,139.53,139.45,13.6204]
[1642493736806,0.25,139.53,139.45,10.7534]
[1642493737407,0.25,139.53,139.46,11.0029]
[1642493737810,30.6738,139.54,139.46,17.0029]
[1642493738408,6.0,139.54,139.46,17.0029]
[1642493738809,30.7833,139.55,139.46,17.0029]
[1642493739611,24.7996,139.56,139.46,17.0029]
[1642493739814,2.867,139.57,139.46,35.2459]
[1642493740014,0.25,139.56,139.47,2.867]
[1642493740213,0.25,139.56,139.49,10.7478]
[1642493740417,0.25,139.56,139.5,0.25]
[1642493740613,28.01729491,139.6,139.5,0.25]
[1642493741417,26.1118,139.6,139.5,0.25]
[1642493741614,26.1118,139.6,139.51,10.7483]
[1642493741814,0.25,139.59,139.51,10.7483]
[1642493742315,2.867,139.6,139.52,0.25]
[1642493742516,1.90549491,139.59,139.54,48.35926259]
[1642493742917,1.90549491,139.59,139.56,10.7445]
[1642493743119,1.90549491,139.59,139.58,0.48129061]
[1642493743714,4.05866573,139.62,139.58,0.48129061]
[1642493743715,1.90549491,139.62,139.58,0.48129061]
[1642493744116,1.90549491,139.62,139.58,11.22509061]
[1642493744914,1.90549491,139.62,139.58,0.48129061]
[1642493745116,1.90549491,139.64,139.58,0.48129061]
[1642493745316,0.25,139.63,139.58,0.48129061]
[1642493745619,3.115,139.63,139.58,0.48129061]
[1642493746418,1.90549491,139.62,139.58,0.48129061]
[1642493748330,1.90549491,139.62,139.58,11.22479061]
[1642493748720,1.90549491,139.62,139.59,47.1130693]
[1642493749722,1.90549491,139.64,139.59,47.1130693]
[1642493750022,1.90549491,139.64,139.6,10.7418]
[1642493750223,1.90549491,139.64,139.6,10.9918]
[1642493750626,1.90549491,139.64,139.6,11.2518]
[1642493750821,1.90549491,139.64,139.6,17.2518]
[1642493751023,242.12649775,139.69,139.6,17.2518]
[1642493751024,1.90549491,139.66,139.6,17.2518]
[1642493751224,1.90549491,139.66,139.61,2.864]
[1642493751422,1.90549491,139.66,139.62,10.7396]
[1642493752423,1.90549491,139.68,139.62,10.7396]
[1642493752825,0.25,139.67,139.62,10.7396]
[1642493753429,1.90549491,139.68,139.62,10.7396]
[1642493753628,1.90549491,139.67,139.62,10.7396]
[1642493755629,1.90549491,139.68,139.62,10.7396]
[1642493755832,1.90549491,139.68,139.63,0.25]
[1642493756032,1.90549491,139.68,139.64,10.738]
[1642493756233,1.90549491,139.68,139.64,59.79107531]
[1642493757432,4.64507961,139.7,139.64,56.92707531]
[1642493757632,4.64507961,139.7,139.66,10.7364]
[1642493757832,4.64507961,139.7,139.67,0.25]
[1642493758034,4.64507961,139.7,139.67,6.909]
[1642493758436,4.64507961,139.7,139.68,0.25]
[1642493758633,2.7395847,139.7,139.68,0.25]
[1642493759433,2.7395847,139.7,139.67,10.7354]
[1642493759834,2.7395847,139.7,139.65,19.193]
[1642493760035,2.7395847,139.7,139.65,16.33]
[1642493760338,2.7395847,139.7,139.66,0.25]
[1642493760539,2.7395847,139.7,139.66,10.9876]
[1642493760742,4.64507961,139.7,139.66,54.47651484]
[1642493760944,1.90549491,139.7,139.66,54.47651484]
[1642493761950,1.90549491,139.72,139.68,0.48129061]
[1642493762145,1.90549491,139.72,139.68,11.21709061]
[1642493762847,1.90549491,139.72,139.68,0.48129061]
[1642493763845,1.90549491,139.71,139.68,0.48129061]
[1642493764848,1.90549491,139.72,139.68,0.48129061]
[1642493765145,1.90549491,139.72,139.68,11.21739061]
[1642493765347,1.90549491,139.72,139.69,0.25]
[1642493765845,1.90549491,139.73,139.69,0.25]
[1642493766447,1.90549491,139.73,139.69,7.801]
[1642493766650,1.90549491,139.73,139.7,46.23105953]
[1642493766863,1.90549491,139.74,139.7,46.48105953]
[1642493767064,1.90549491,139.74,139.7,10.9845]
[1642493767264,1.90549491,139.74,139.7,10.7345]
[1642493767664,46.2035,139.76,139.7,10.7345]
[1642493767665,1.90549491,139.73,139.7,10.7345]
[1642493770667,1.90549491,139.73,139.71,10.9837]
[1642493771469,1.90549491,139.73,139.71,0.25]
[1642493771670,6.06429933,139.72,139.7,2.862]
[1642493771870,6.06429933,139.72,139.68,11.21699061]
[1642493772071,1.90549491,139.74,139.68,11.21699061]
[1642493773071,1.90549491,139.74,139.68,0.48129061]
[1642493773273,0.25,139.73,139.68,0.48129061]
[1642493773474,3.113,139.73,139.68,0.48129061]
[1642493773678,1.90549491,139.72,139.68,0.48129061]
[1642493773876,0.25,139.71,139.68,0.48129061]
[1642493774074,6.06429933,139.7,139.68,0.48129061]
[1642493775284,7.96979424,139.7,139.68,0.48129061]
[1642493782322,6.06429933,139.7,139.68,0.48129061]
[1642493782523,1.90549491,139.71,139.68,0.48129061]
[1642493783522,1.90549491,139.7,139.68,0.48129061]
[1642493784127,1.90549491,139.7,139.68,11.21729061]
[1642493784332,1.90549491,139.7,139.69,0.25]
[1642493784526,1.90549491,139.7,139.69,6.388]
[1642493784724,1.90549491,139.72,139.69,6.388]
[1642493784924,1.90549491,139.72,139.69,9.251]
[1642493785325,1.90549491,139.72,139.69,19.9849]
[1642493786027,1.90549491,139.73,139.69,19.9849]
[1642493786424,209.18701894,139.77,139.69,19.9849]
[1642493786626,198.27401894,139.77,139.69,25.9849]
[1642493786833,198.27401894,139.77,139.7,1.52921765]
[1642493787029,198.27401894,139.77,139.72,10.7267]
[1642493787228,198.27401894,139.77,139.73,2.862]
[1642493787428,198.27401894,139.77,139.73,38.8733]
[1642493787628,194.21535321,139.77,139.73,44.8733]
[1642493788028,4.05866573,139.79,139.73,38.8733]
[1642493788228,4.05866573,139.79,139.74,10.7284]
[1642493788727,4.05866573,139.79,139.73,38.8733]
[1642493789528,26.7096,139.81,139.73,38.8733]
[1642493789928,2.862,139.81,139.74,47.51674911]
[1642493790129,2.861,139.83,139.74,47.51674911]
[1642493790327,8.861,139.83,139.75,0.25]
[1642493790529,8.861,139.83,139.77,10.7291]
[1642493790728,0.25,139.82,139.77,10.7291]
[1642493790928,2.861,139.81,139.77,10.7291]
[1642493791331,2.861,139.81,139.73,41.7613]
[1642493791529,2.861,139.81,139.74,41.51380326]
[1642493791931,2.861,139.82,139.74,41.51380326]
[1642493792329,0.25,139.81,139.71,13.191]
[1642493792530,2.862,139.8,139.72,0.25]
[1642493792731,2.862,139.82,139.77,0.48129061]
[1642493793432,6.92066573,139.82,139.77,0.48129061]
[1642493794034,6.92066573,139.82,139.77,0.73129061]
[1642493794235,2.862,139.82,139.77,0.73129061]
[1642493794634,34.94736573,139.83,139.77,11.46039061]
[1642493795036,34.94736573,139.83,139.77,11.21039061]
[1642493795234,30.8887,139.83,139.77,11.21039061]
[1642493796235,30.8887,139.83,139.77,0.48129061]
[1642493796434,3.111,139.82,139.77,0.48129061]
[1642493797038,74.591,139.82,139.77,0.48129061]
[1642493797233,3.111,139.82,139.77,0.48129061]
[1642493797634,13.8425,139.82,139.77,0.48129061]
[1642493797836,17.90116573,139.82,139.77,0.48129061]
[1642493798433,17.65116573,139.82,139.77,0.48129061]
[1642493798835,0.25,139.81,139.77,0.48129061]
[1642493799034,2.861,139.8,139.77,0.48129061]
[1642493799237,6.06429933,139.79,139.77,0.48129061]
[1642493799835,27.58236573,139.81,139.77,0.48129061]
[1642493800736,23.5237,139.81,139.77,0.48129061]
[1642493801538,0.25,139.8,139.77,0.48129061]
[1642493801739,26.3847,139.81,139.77,0.48129061]
[1642493801939,23.5237,139.81,139.77,0.48129061]
[1642493802142,0.25,139.8,139.77,0.48129061]
[1642493802339,23.5237,139.81,139.77,0.48129061]
[1642493804142,34.2555,139.81,139.77,0.48129061]
[1642493804376,0.25,139.8,139.77,0.48129061]
[1642493804577,6.06429933,139.79,139.72,2.861]
[1642493804777,0.25,139.78,139.72,2.861]
[1642493804976,2.862,139.77,139.72,2.861]
[1642493805176,10.7362,139.76,139.72,2.861]
[1642493805378,2.862,139.75,139.66,10.33]
[1642493805573,2.862,139.75,139.66,16.33]
[1642493805774,0.25,139.74,139.68,10.7355]
[1642493806374,10.9871,139.74,139.68,34.91240419]
[1642493806574,10.9871,139.74,139.66,16.33]
[1642493807678,10.9871,139.74,139.67,10.7368]
[1642493808375,0.25,139.74,139.67,10.7368]
[1642493808574,0.25,139.75,139.67,10.7368]
[1642493809675,10.9865,139.75,139.67,10.7368]
[1642493811077,13.8495,139.75,139.67,10.7368]
[1642493812077,13.8495,139.75,139.65,10.7379]
[1642493812278,19.8495,139.75,139.64,2.863]
[1642493812479,30.1795,139.75,139.62,2.863]
[1642493812677,22.5522,139.74,139.61,8.863]
[1642493812877,10.74,139.71,139.61,8.863]
[1642493813178,10.74,139.71,139.62,39.47734321]
[1642493813382,0.25,139.7,139.63,2.863]
[1642493813778,16.74,139.71,139.64,0.25]
[1642493814379,16.74,139.71,139.63,8.863]
[1642493814579,16.74,139.71,139.64,0.25]
[1642493814781,0.25,139.7,139.64,0.25]
[1642493814986,10.9904,139.7,139.63,2.863]
[1642493815181,10.9904,139.7,139.6,2.863]
[1642493815182,2.863,139.69,139.6,2.863]
[1642493815381,0.25,139.68,139.58,4.07298737]
[1642493815982,10.7434,139.67,139.57,6.93698737]
[1642493816180,74.344,139.66,139.57,4.07298737]
[1642493816380,9.114,139.66,139.57,4.07298737]
[1642493816982,9.114,139.66,139.58,39.92626833]
[1642493817589,10.7455,139.64,139.58,39.92626833]
[1642493817784,9.114,139.66,139.59,0.25]
[1642493817984,23.2822,139.67,139.59,0.25]
[1642493818188,23.2822,139.67,139.59,3.114]
[1642493818383,23.2822,139.67,139.59,9.114]
[1642493818984,13.194,139.7,139.59,9.114]
[1642493819184,34.189,139.7,139.59,9.114]
[1642493819385,40.189,139.7,139.59,9.114]
[1642493819686,10.7417,139.69,139.59,19.857]
[1642493820097,40.189,139.7,139.59,19.857]
[1642493820289,6.0,139.7,139.59,20.117]
[1642493820487,12.92266573,139.72,139.59,101.927]
[1642493820687,10.05866573,139.72,139.59,101.927]
[1642493821087,6.0,139.72,139.59,101.927]
[1642493821289,34.78326573,139.73,139.59,101.927]
[1642493821898,30.7246,139.73,139.6,3.83455552]
[1642493822087,41.4632,139.73,139.63,10.7382]
[1642493822288,41.4632,139.73,139.64,38.47533274]
[1642493822689,41.4632,139.73,139.64,44.47533274]
[1642493823131,41.4632,139.73,139.64,35.61233274]
[1642493823487,44.3262,139.73,139.64,38.47533274]
[1642493823687,44.3262,139.73,139.64,3.113]
[1642493824288,0.25,139.72,139.64,3.113]
[1642493824488,10.7406,139.7,139.64,3.113]
[1642493824888,0.25,139.69,139.64,2.863]
[1642493825089,3.113,139.69,139.58,6.93598737]
[1642493825291,3.113,139.69,139.59,0.25]
[1642493825791,13.8549,139.69,139.59,46.14812409]
[1642493826390,13.8549,139.69,139.59,52.14812409]
[1642493826591,13.8549,139.69,139.59,62.89052409]
[1642493826790,13.8549,139.69,139.6,0.25]
[1642493826989,91.3349,139.69,139.6,0.25]
[1642493827689,91.3349,139.69,139.59,56.89052409]
[1642493828292,91.3349,139.69,139.6,0.25]
[1642493828491,19.8549,139.69,139.6,10.9922]
[1642493828692,13.8549,139.69,139.6,10.9922]
[1642493829396,13.8549,139.69,139.6,16.9922]
[1642493829595,10.9919,139.69,139.6,16.9922]
[1642493831394,10.9919,139.69,139.6,19.8562]
[1642493832095,71.48,139.68,139.6,8.864]
[1642493832294,10.7442,139.66,139.56,4.07298737]
[1642493832495,13.6092,139.66,139.56,4.07298737]
[1642493832696,0.25,139.65,139.56,4.07298737]
[1642493832898,0.25,139.65,139.54,6.93698737]
[1642493833096,71.48,139.64,139.55,0.25]
[1642493833296,0.25,139.63,139.55,0.25]
[1642493833499,10.9961,139.63,139.55,10.9961]
[1642493833699,10.9961,139.63,139.54,2.864]
[1642493833896,2.865,139.62,139.54,2.864]
[1642493834297,0.25,139.61,139.54,8.864]
[1642493834497,2.865,139.6,139.54,2.864]
[1642493834796,0.25,139.59,139.54,8.864]
[1642493836198,0.25,139.59,139.54,2.864]
[1642493836997,0.25,139.59,139.51,46.98486264]
[1642493837297,10.7491,139.59,139.51,57.73406264]
[1642493837497,13.6151,139.59,139.51,57.73406264]
[1642493837697,0.25,139.58,139.51,57.73406264]
[1642493837896,24.3475,139.6,139.51,60.60006264]
[1642493838297,24.3475,139.6,139.51,66.60006264]
[1642493838699,24.3475,139.6,139.53,10.7475]
[1642493838898,24.3475,139.6,139.54,0.25]
[1642493839097,24.3475,139.6,139.53,2.866]
[1642493839796,35.0958,139.6,139.54,49.73538328]
[1642493841300,24.3475,139.6,139.54,60.48228328]
[1642493841600,10.7471,139.62,139.54,66.48228328]
[1642493841800,0.25,139.61,139.54,66.48228328]
[1642493842604,10.9975,139.61,139.54,6.25]
[1642493842804,10.9975,139.61,139.52,19.6127]
[1642493843003,10.9975,139.61,139.53,0.25]
[1642493843204,10.9975,139.61,139.52,16.7477]
[1642493843403,82.4775,139.61,139.52,16.7477]
[1642493843808,82.4775,139.61,139.52,6.0]
[1642493844005,82.4775,139.61,139.51,12.93798737]
[1642493844208,2.866,139.6,139.52,0.25]
[1642493844408,0.25,139.59,139.52,0.25]
[1642493844608,10.999,139.59,139.52,37.59907627]
[1642493844812,10.999,139.59,139.52,43.59907627]
[1642493847950,10.999,139.59,139.52,6.25]
[1642493848145,10.999,139.59,139.52,0.25]
[1642493848749,10.999,139.59,139.52,46.27450945]
[1642493848947,10.749,139.59,139.52,52.27450945]
[1642493851047,10.749,139.59,139.52,6.25]
[1642493851249,10.749,139.59,139.52,0.25]
[1642493851450,10.749,139.59,139.52,6.25]
[1642493852047,10.749,139.59,139.52,0.25]
[1642493852251,10.749,139.59,139.52,6.25]
[1642493852650,16.749,139.59,139.52,6.25]
[1642493853253,16.749,139.59,139.52,0.25]
[1642493853655,0.25,139.58,139.52,0.25]
[1642493856755,10.9998,139.58,139.52,0.25]
[1642493856983,16.9998,139.58,139.51,8.865]
[1642493857183,16.9998,139.58,139.51,6.0]
[1642493857383,16.9998,139.58,139.5,8.866]
[1642493857584,16.9998,139.58,139.51,0.25]
[1642493857984,16.9998,139.58,139.5,8.866]
[1642493858184,16.9998,139.58,139.49,4.07298737]
[1642493858185,2.866,139.57,139.49,4.07298737]
[1642493858385,10.7527,139.55,139.49,4.07298737]
[1642493858885,10.7527,139.55,139.49,42.35667311]
[1642493859286,10.7527,139.55,139.5,0.25]
[1642493859586,2.866,139.6,139.5,0.25]
[1642493859786,49.0295,139.61,139.5,0.25]
[1642493860186,13.196,139.61,139.5,10.9999]
[1642493860387,2.866,139.61,139.5,26.62578119]
[1642493860588,4.05866573,139.63,139.52,41.71486578]
[1642493860786,4.05866573,139.63,139.53,10.58]
[1642493860987,4.05866573,139.63,139.53,17.534]
[1642493861186,4.05866573,139.63,139.54,10.7438]
[1642493861387,13.195,139.69,139.54,10.7438]
[1642493861388,74.345,139.66,139.55,43.79485216]
[1642493861590,71.48,139.66,139.55,43.79485216]
[1642493861788,71.48,139.66,139.55,49.79485216]
[1642493862287,23.4238,139.65,139.55,49.79485216]
[1642493862488,23.6738,139.65,139.55,49.79485216]
[1642493862689,34.4186,139.65,139.56,10.7448]
[1642493862889,34.4186,139.65,139.57,0.25]
[1642493863092,0.25,139.65,139.57,0.25]
[1642493863295,2.865,139.67,139.57,0.25]
[1642493863490,29.66466573,139.68,139.59,46.59971385]
[1642493863689,40.40756573,139.68,139.59,46.59971385]
[1642493863891,40.40756573,139.68,139.6,0.25]
[1642493864590,0.25,139.67,139.6,0.25]
[1642493864891,10.9935,139.67,139.6,0.25]
[1642493866791,16.9935,139.67,139.6,0.25]
[1642493866993,88.4735,139.67,139.6,0.25]
[1642493867194,88.4735,139.67,139.57,8.864]
[1642493867394,10.7452,139.65,139.57,8.864]
[1642493867593,10.7452,139.65,139.57,6.0]
[1642493867794,0.25,139.64,139.56,8.865]
[1642493867995,10.7452,139.65,139.57,0.25]
[1642493868599,10.7452,139.65,139.57,10.9946]
[1642493868800,0.25,139.64,139.57,16.7446]
[1642493869400,71.73,139.64,139.57,16.7446]
[1642493870100,82.4755,139.64,139.57,6.0]
[1642493870300,82.4755,139.64,139.56,50.0652643]
[1642493871401,82.4755,139.64,139.56,60.8102643]
[1642493872402,82.4755,139.64,139.57,0.25]
[1642493872603,10.9955,139.64,139.57,0.25]
[1642493873704,0.25,139.64,139.57,10.9945]
[1642493873906,0.25,139.65,139.57,16.9945]
[1642493875304,0.25,139.66,139.57,16.9945]
[1642493875503,8.865,139.67,139.57,16.9945]
[1642493876308,2.865,139.67,139.57,35.9045]
[1642493876504,4.05866573,139.69,139.57,37.43338119]
[1642493876705,4.05866573,139.69,139.58,2.864]
[1642493876907,4.05866573,139.69,139.61,10.7395]
[1642493877106,4.05866573,139.69,139.62,40.38279553]
[1642493877305,4.05866573,139.7,139.62,46.63279553]
[1642493877505,0.25,139.68,139.62,46.63279553]
[1642493877706,0.25,139.69,139.62,46.63279553]
[1642493878606,0.25,139.69,139.63,10.7393]
[1642493878804,0.25,139.7,139.63,10.7393]
[1642493881416,0.25,139.7,139.63,16.7393]
[1642493882110,0.25,139.7,139.63,6.0]
[1642493882413,2.863,139.69,139.6,2.864]
[1642493882816,0.25,139.68,139.6,2.864]
[1642493883012,0.25,139.68,139.59,45.22121416]
[1642493883234,2.864,139.67,139.59,45.47121416]
[1642493883434,0.25,139.68,139.59,51.47121416]
[1642493883634,10.7435,139.67,139.59,62.21351416]
[1642493883835,0.25,139.66,139.59,61.96351416]
[1642493884036,2.864,139.66,139.59,16.7423]
[1642493884335,2.864,139.69,139.59,16.7423]
[1642493884736,10.7425,139.68,139.59,16.7423]
[1642493884938,28.57006573,139.71,139.6,37.84396819]
[1642493885134,28.57006573,139.71,139.63,10.7398]
[1642493885334,28.57006573,139.71,139.63,60.39562232]
[1642493885733,28.57006573,139.71,139.63,54.39562232]
[1642493886336,13.6042,139.7,139.63,10.7398]
[1642493886536,13.6042,139.7,139.6,13.193]
[1642493886736,13.6042,139.7,139.6,19.193]
[1642493887136,0.25,139.69,139.6,19.193]
[1642493887337,2.864,139.68,139.6,16.33]
[1642493887639,2.864,139.68,139.58,44.75791071]
[1642493887640,25.7147,139.68,139.57,4.07298737]
[1642493887838,0.25,139.67,139.58,0.25]
[1642493888036,2.864,139.66,139.57,4.07298737]
[1642493888236,2.864,139.66,139.57,10.07298737]
[1642493888436,0.25,139.65,139.57,6.0]
[1642493888836,0.25,139.65,139.56,54.04123743]
[1642493889237,0.25,139.65,139.57,0.25]
[1642493889437,10.9963,139.65,139.57,0.25]
[1642493890242,34.1613,139.65,139.57,0.25]
[1642493890440,34.1613,139.65,139.56,0.25]
[1642493891040,34.1613,139.65,139.55,8.864]
[1642493891244,45.5703,139.65,139.55,2.864]
[1642493891443,55.9003,139.65,139.55,2.864]
[1642493892341,55.9003,139.65,139.54,4.07298737]
[1642493892342,10.7501,139.61,139.54,4.07298737]
[1642493892743,0.25,139.6,139.54,4.07298737]
[1642493893340,0.25,139.6,139.52,2.865]
[1642493893542,10.7502,139.59,139.53,0.25]
[1642493894142,8.865,139.62,139.53,0.25]
[1642493894345,6.0,139.62,139.54,2.865]
[1642493894842,82.35766573,139.65,139.54,13.6113]
[1642493895055,82.35766573,139.65,139.54,2.865]
[1642493895249,71.73,139.64,139.54,2.865]
[1642493895445,2.865,139.63,139.54,2.865]
[1642493895646,9.115,139.64,139.54,2.865]
[1642493895845,10.7468,139.62,139.55,0.25]
[1642493896244,0.25,139.61,139.55,0.25]
[1642493897145,0.25,139.61,139.55,10.996]
[1642493897346,0.25,139.61,139.55,16.996]
[1642493899247,0.25,139.61,139.55,10.996]
[1642493900450,0.25,139.61,139.55,10.746]
[1642493900651,10.9975,139.61,139.54,2.865]
[1642493900850,16.9975,139.61,139.54,2.865]
[1642493901251,16.9975,139.61,139.52,4.07298737]
[1642493901451,41.4619,139.61,139.51,4.07298737]
[1642493901650,2.866,139.6,139.51,4.07298737]
[1642493901851,0.25,139.59,139.51,10.07298737]
[1642493902050,10.9995,139.59,139.51,20.82158737]
[1642493902449,10.9995,139.59,139.51,20.83225373]
[1642493902855,10.9995,139.59,139.52,0.25]
[1642493906257,10.9995,139.59,139.51,0.25]
[1642493907059,10.9995,139.59,139.53,2.04191125]
[1642493907961,10.9995,139.59,139.52,2.04191125]
[1642493909765,0.25,139.59,139.52,12.79011125]
[1642493910965,10.9989,139.59,139.53,2.04191125]
[1642493911765,74.346,139.58,139.53,2.04191125]
[1642493911966,48.0,139.56,139.45,2.866]
[1642493912165,13.197,139.55,139.4,21.01012201]
[1642493912368,23.5205,139.54,139.43,10.7554]
[1642493912565,84.677,139.53,139.43,10.7554]
[1642493912765,90.927,139.53,139.43,10.7554]
[1642493912965,90.927,139.53,139.41,47.82205292]
[1642493913168,24.6684,139.52,139.41,47.82205292]
[1642493913366,10.7558,139.5,139.42,10.7561]
[1642493913567,30.6684,139.52,139.43,2.868]
[1642493913766,10.33,139.55,139.44,41.85404551]
[1642493913968,61.11365272,139.58,139.45,2.867]
[1642493914166,365.36882723,139.58,139.45,25.5861]
[1642493914366,365.36882723,139.58,139.49,10.7488]
[1642493914367,376.11872723,139.58,139.49,10.7488]
[1642493914566,376.11872723,139.58,139.5,2.866]
[1642493914765,376.11872723,139.58,139.49,46.56864663]
[1642493914966,2.866,139.57,139.49,46.56864663]
[1642493915168,0.25,139.57,139.49,46.56864663]
[1642493915369,365.36882723,139.58,139.49,46.56864663]
[1642493915569,368.23482723,139.58,139.5,10.7495]
[1642493915774,365.36882723,139.58,139.5,10.9995]
[1642493915969,59.3246,139.58,139.5,10.9995]
[1642493916170,48.9946,139.58,139.52,48.0004275]
[1642493916668,48.9946,139.58,139.53,10.7473]
[1642493917692,48.9946,139.58,139.53,58.61612494]
[1642493920695,2.866,139.61,139.53,65.20812494]
[1642493920898,10.9687,139.63,139.53,65.20812494]
[1642493920899,24.3967,139.63,139.55,10.7455]
[1642493921095,24.3967,139.63,139.56,39.26900655]
[1642493921297,24.3967,139.63,139.56,39.51900655]
[1642493922095,35.1422,139.63,139.56,39.26900655]
[1642493922496,35.1422,139.63,139.55,10.7455]
[1642493922697,3.115,139.62,139.55,10.7455]
[1642493923097,2.865,139.62,139.55,10.7455]
[1642493923400,13.6114,139.62,139.53,10.7469]
[1642493923597,0.25,139.61,139.53,13.6119]
[1642493923800,0.25,139.61,139.53,10.7469]
[1642493924000,2.865,139.6,139.53,10.7469]